Workbook

Sheet About TaPL3
B2: TaPL3 Spreadsheet Model
B4: There are three key results in the TaPL3 model that distinguish it from EQC: CTD, P, and H
B6: Parameter Symbol | C6: Parameter Name | D6: Parameter Description | E6: Calculation | F6: Variable Definitions
B7: CTD_air | C7: Characterstic Travel Distance in air | D7: Describes the potential for long-range transport in air (km). This value should be compared to a reference chemical for results to be meaningful | E7: CTD_air = U_wind * t_air * Y_air | F7: U_wind = wind velocity (km/h)
F8: t_air = half-life in air (h)
F9: Y_air = mass fraction of chemical in air
B10: CTD_water | C10: Characterstic Travel Distance in water | D10: Describes the potential for long-range transport in water (km). This value should be compared to a reference chemical for results to be meaningful | E10: CTD_water = U_water * t_water * Y_water | F10: U_water = water velocity (km/h)
F11: t_water = half-life in water (h)
F12: Y_water = mass fraction of chemical in water
B13: P | C13: Overall persistence | D13: First estimate of overall environmental persistence. Useful particularly for showing the which loss porcesses are likely to be most important. Note: A short half-life may not be significant if relatively little of the chemical is subject to degradation by virtue of its partitioning | E13: P = M / E | F13: M = Total quantity of chemical in the system (mol)
F14: E = emission rate (mol/h)
B17: H | C17: Hopping | D17: Average number of Hops experienced by the chemical. It is calculated only for emission to air | E17: H = (N_w,a + N_s,a + N_v,a) / E_a | F17: N_w,a = transfer rate from water to air (mol/h)
F18: N_s,a = transfer rate from soil to air (mol/h)
F19: N_v,a = transfer rate from vegetation to air (mol/h)
F20: E_a = emission rate to air (mol/h)
B22: Based on publication: | C22: Beyer, A., Mackay, D., Matthies, M., Wania, F., Webster, E. 2000. Assessing Long-range Transport Potential of Persistent Organic Pollutants. Environ. Sci. Tech. 34: 699-703.

Sheet Instructions
B1: The TaPL3 model uses different input properties depending on whether they are Type 1, Type 2, or Type 3 chemicals (as defined in Mackay et al. 1996). In this version of the model, the chemical 'Type' is selected based on certain chemical properties, rather than by user selection. Selection rules are as follows:
B3: Type 1 chemicals: Substances partition into air, water and octanol. These chemicals have measurable vapour pressures and solubilities. If a vapour pressure value is entered the chemical will be treated as Type 1.
C4: If the vapour pressure is not meaurable or negligible, enter a dash in vapour pressure cell, then continue to fill out the rest of the properties
B5: Type 2 chemicals: The substance does not appreciably partition into air. If a dash is entered into vapour pressure then additional partition ratio inputs will appear for media/water systems
B6: Type 3 chemicals: The substance does not appreciably partition into water. If a dash is entered in the vapour pressure input and the soil/water partition ratio value is 1000 or larger, then the required inputs will be media/air
C7: If the inputted soil/water partition ratio > 1000, ALL partition ratio inputs will change to media/air from media/water. Some values may need to be re-inputted as media/air instead of media/water
B8: Notes: | C8: After the Inputs for your chemical is filled out in the Inputs sheet, it is recommended to add the chemical to the database by clicking the radial button 'Add to DB' to easily-re-enter the correct input data in the future Sample Type 1, 2, and 3 chemicals can be found in the chemical database
B9: Continue filling out any remaining chemical properties, environmental properties, and emission data. Default emission is to air, but can be switched to water. Results can be found in the corresponding 'Results' sheets and are summarized in the 'Diagram' sheets
B11: Property estimation guidelines (all equations from Mackay & Parnis 2021):
B12: - Henry's law constant (H) an be estimated as: Vapor Pressure * Molar Mass / Solubility
B13: - Reaction half-life estimated values can be obtained from EAS-E Suite (www.eas-e-suite.com), or EPI Suite for water & air half-lives only (https://www.epa.gov/tsca-screening-tools/epi-suitetm-estimation-program-interface)
B14: - Koc can be estimated as Kow * 0.35 (Seth method) or as Kow * 0.41 (Karickhoff method)
B15: - Kaw can be calculated as H/RT, where R = Gas constant and T = temperature
B16: - Partition ratios can be calculated as the ratio of Z-values, e.g., Kaw = Za/Zw
C17: > Za = 1/RT = 4x10^-4
C18: > Zw = Za/Kaw
C19: > Zo = Zw*Kow
C20: > Z_solid = Zo * OC fraction; where any solid phase can be represented including sediment, suspended sediment, soil, etc. OC fraction default values can be found in the Environment properties sheet
C21: > Z_biota = Zo * Lipid content; where any biota can be represented, including fish. Default lipid content values can be found in the Environment properties sheet
B24: References: | C24: Mackay et al. 1996. Assessing the fate of new and existing chemicals: a five-stage process. Environ. Toxicol Chem. 15(9), 1618-1626
C25: Mackay & Parnis, 2021. Multimedia Environmental Models: The Fugacity Approach. 3rd ed. CRC Press, Taylor & Francis Group. Boca Raton, FL.

Sheet Chemical Properties
C3: CHEMICAL PROPERTIES | D3: Please complete all required fields below
D4: or
D5: Select a chemical from the database:
C6: * indicates required input
C7: Note: insert dash (-) if property is not inputted
E8: Name in spreadsheet | H8: Calculated Chemical Parameters | K8: Name in spreadsheet
B9: * | C9: Chemical Name | D9: Specimen Type 3 | E9: ChemName | H9: Kow corrected for regional temperature | I9: =IF(ISNUMBER(LKOW),(10^LKOW)*EXP(D47*1000/I15*(1/I13-1/I14)),"-") -> - | K9: KowE
C10: CAS | H10: Fish-water partition ratio | I10: =IF(ISNUMBER(LKOW),I9*'Environmental Properties'!H28,Part6_2) ->  | K10: KFW
H11: For solids, estimated subcooled liquid vapour pressure | I11: =IF(ISNUMBER(Pressure),Pressure/Fug_Ratio,"-") -> - | K11: PL
B12: * | C12: Molar Mass (g/mol) | D12: 180 | E12: MolMass | H12: Kaw corrected for regional temperature | I12: =_xlfn.IFS(TYPE="One",(HenLw/I16)*EXP(D48*1000/8.314*(1/I13-1/I14)),TYPE="Two",Part1_2,TYPE="Three",1/D39) -> 0.01666666667 | K12: KawE
B13: * | C13: Data Temperature (°C) | D13: 21 | E13: DataTemp | H13: Data temperature K | I13: =DataTemp+273.15 -> 294.15 | K13: DataTempK
C14: Melting Point (°C) | E14: MeltPt | H14: Environmental temperature K | I14: ='Environmental Properties'!D9+273.15 -> 293.15 | K14: EnvTempK
C15: Vapor Pressure (Pa) | D15: - | E15: Pressure | H15: Gas constant | I15: 8.314 | K15: Gas_Constant
C16: Water solubility (g/m3) | H16: RT | I16: =I15*I13 -> 2445.5631 | K16: RT
B17: =IF(Pressure="-","","*") ->  | C17: Henry's Law Constant (Pa·m³/mol) | D17: - | E17: HenLw
C18: Chemical Type: | D18: =IF(AND(ISNUMBER(SEARCH("-",Pressure)),KQW<1000),"Two",IF(ISNUMBER(SEARCH("-",Pressure)),"Three","One")) -> Three | E18: TYPE
H19: Calculated Partition ratios - dimensionless
C20: Reaction Half-Lives (hours) | D20: For half-lives if negligible enter 1E11 | H20: Gaseous air/Water | I20: =_xlfn.IFS(TYPE="One",Z_AirVapour*HenLw,TYPE="Two",D39,TYPE="Three",1/D39) -> 0.01666666667 | J20: 1 = Air | K20: Part1_2
B21: * | C21: Air | D21: 55 | E21: t_air | H21: Soil solids/Water | I21: =_xlfn.IFS(TYPE="One",Z_SoilSolids/Zww,TYPE="Two",Part3_2_D*'Environmental Properties'!H17/1000) ->  | J21: 2 = Water | K21: Part3_2
B22: * | C22: Water | D22: 100000000000 | E22: t_water | H22: Sediment solids/Water | I22: =_xlfn.IFS(TYPE="One",Z_SedSolids/Zww,TYPE="Two",Part4_2_D*'Environmental Properties'!H19/1000) ->  | J22: 3 = Soil | K22: Part4_2
B23: * | C23: Soil | D23: 550 | E23: t_soil | H23: Suspended particles/Water | I23: =_xlfn.IFS(TYPE="One",Z_SuspPart/Zww,TYPE="Two",Part5_2_D*'Environmental Properties'!H13/1000) ->  | J23: 4 = Sediment | K23: Part5_2
B24: * | C24: Sediment | D24: 100000000000 | E24: t_sediment | H24: Fish/Water | I24: =_xlfn.IFS(TYPE="One",Z_Fish/Zww,TYPE="Two",Part6_2_D*'Environmental Properties'!H14/1000) ->  | J24: 5 = Suspended particles | K24: Part6_2
B25: * | C25: Vegetation | D25: 27 | E25: t_vegetation | H25: Aerosol/Air | I25: =_xlfn.IFS(TYPE="One",Z_Q/Z_AirVapour,TYPE="Two",IF(Z_AirVapour=0,0,KQW/Part1_2),TYPE="Three",KQW) -> 4000 | J25: 6 = Fish | K25: Part7_1
H26: Fish/Air | I26: =IF(ISNUMBER(D43),D43,"") -> 9000 | J26: 7 = Aerosol | K26: Part 6_1
C27: Activation Energies (kJ/mol) | D27: =_xlfn.IFS(TYPE="One","",TYPE="Two","Ea not used for Type 2 chemicals",TYPE="Three","Ea not used for Type 3 chemicals") -> Ea not used for Type 3 chemicals
B28: =IF(Pressure="-","","*") ->  | C28: Air | E28: Ea_air
B29: =IF(Pressure="-","","*") ->  | C29: Water | E29: Ea_water | H29: Partition ratios - dimensional
B30: =IF(Pressure="-","","*") ->  | C30: Soil | E30: Ea_soil | H30: Soil solids/Water (L/kg) | I30: =IF(TYPE="Two",D40,(I21*1000)/'Environmental Properties'!H17) ->  | K30: Part3_2_D
B31: =IF(Pressure="-","","*") ->  | C31: Sediment | E31: Ea_sed | H31: Sediment solids/Water (L/kg) | I31: =IF(TYPE="Two",D42,(I22*1000)/'Environmental Properties'!H19) ->  | K31: Part4_2_D
B32: =IF(Pressure="-","","*") ->  | C32: Vegetation | E32: Ea_veg | H32: Suspended particles/Water (L/kg) | I32: =IF(TYPE="Two",D41,(I23*1000)/'Environmental Properties'!H13) ->  | K32: Part5_2_D
H33: Fish/Water (L/kg) | I33: =IF(TYPE="Two",D43,(I24*1000)/'Environmental Properties'!H14) ->  | K33: Part6_2_D
C34: Partition Ratios
B36: =IF(Pressure="-","","*") ->  | C36: logKOW | E36: LKOW
B37: =IF(Pressure="-","","*") ->  | C37: KOC | D37: =IF(ISNUMBER(LKOW),KowE*0.41,"-") -> - | E37: KOC
B38: =IF(Pressure="-","*","") -> * | C38: =IF(AND(ISNUMBER(SEARCH("N/A",Fug_Ratio)),KQW<1000),"Aerosol-Water",IF(ISNUMBER(SEARCH("N/A",Fug_Ratio)),"Aerosol-Air","-")) -> Aerosol-Air | D38: 4000 | E38: KQW
B39: * | C39: =IF(AND(ISNUMBER(SEARCH("N/A",Fug_Ratio)),KQW<1000),"Air-Water",IF(ISNUMBER(SEARCH("N/A",Fug_Ratio)),"Water-Air","-")) -> Water-Air | D39: 60
B40: * | C40: =IF(AND(ISNUMBER(SEARCH("N/A",Fug_Ratio)),KQW<1000),"Soil-Water (L/kg)",IF(ISNUMBER(SEARCH("N/A",Fug_Ratio)),"Soil-Air","-")) -> Soil-Air | D40: 5000
B41: * | C41: =IF(AND(ISNUMBER(SEARCH("N/A",Fug_Ratio)),KQW<1000),"Suspended Particles-Water (L/kg)",IF(ISNUMBER(SEARCH("N/A",Fug_Ratio)),"Suspended Particles-Air","-")) -> Suspended Particles-Air | D41: 8000
B42: * | C42: =IF(AND(ISNUMBER(SEARCH("N/A",Fug_Ratio)),KQW<1000),"Sediment-Water (L/kg)",IF(ISNUMBER(SEARCH("N/A",Fug_Ratio)),"Sediment-Air","-")) -> Sediment-Air | D42: 5300
B43: * | C43: =IF(AND(ISNUMBER(SEARCH("N/A",Fug_Ratio)),KQW<1000),"Fish-Water (L/kg)",IF(ISNUMBER(SEARCH("N/A",Fug_Ratio)),"Fish-Air","-")) -> Fish-Air | D43: 9000
C44: =IF(AND(ISNUMBER(SEARCH("N/A",Fug_Ratio)),KQW<1000),"Vegetation-Water (L/kg)",IF(ISNUMBER(SEARCH("N/A",Fug_Ratio)),"Vegetation-Air","-")) -> Vegetation-Air | D44: 3500
C46: Enthalpy change between phases (kJ/mol) | D46: =_xlfn.IFS(TYPE="One","",TYPE="Two","Not used for Type 2 chemicals",TYPE="Three","Not used for Type 3 chemicals") -> Not used for Type 3 chemicals
B47: =IF(Pressure="-","","*") ->  | C47: Octanol/water | E47: DeltaHKow
B48: =IF(Pressure="-","","*") ->  | C48: Air/water | E48: DeltaHKaw

Sheet Environmental Properties
C3: Environmental Properties
C5: Please complete all fields or select an environment from the database:
E7: Name in spreadsheet
C8: Environment Name | D8: EQC- standard environment | E8: EnvName
C9: Environment Temperature (°C) | D9: 20 | E9: EnvTemp | G9: Densities (kg/m3) | I9: Name in spreadsheet | K9: Transport Velocities (m/h) | M9: Name in spreadsheet
G10: Air in Air | H10: 1.185 | K10: Air-side air-water MTC | L10: 5 | M10: MTC_airside_AirWater
C11: Volume Fractions | G11: Aerosol in Air | H11: 2000 | K11: Water-side air-water MTC | L11: 0.05 | M11: MTC_waterside_AirWater
C12: Aerosol in Air | D12: 2e-11 | E12: vf_Q | G12: Water in Water | H12: 1000 | K12: Rain rate | L12: 0.0001 | M12: Rain_rate
C13: Susp. Particles in Water | D13: 5e-06 | E13: vf_sus_water | G13: Sup. Particles in Water | H13: 1500 | K13: Aerosol dry deposition | L13: 10 | M13: Aer_Dry_Dep
C14: Fish in Water | D14: 1e-06 | E14: vf_fish_water | G14: Fish in Water | H14: 1000 | K14: Soil-air phase diffusion MTC | L14: 0.02 | M14: MTC_diff_SoilAir
C15: Air in Soil | D15: 0.2 | E15: vf_air_soil | G15: Air in Soil | H15: 1.185 | K15: Soil-water phase diffusion MTC | L15: 1e-05 | M15: MTC_diff_SoilWater
C16: Water in Soil | D16: 0.3 | E16: vf_water_soil | G16: Water in Soil | H16: 1000 | K16: Soil-air boundary layer MTC | L16: 5 | M16: MTC_boundary_SoilAir
C17: Solids in Soil | D17: 0.5 | E17: vf_solids_soil | G17: Solid in Soil | H17: 2400 | K17: Water-side sed.-water diffusion MTC | L17: 0.0001 | M17: MTC_waterside_SedWater
C18: Water in Sediment | D18: 0.8 | E18: vf_water_sed | G18: Water in Sediment | H18: 1000 | K18: Sediment deposition | L18: 5e-07 | M18: Sed_Dep
C19: Solids in Sediment | D19: 0.2 | E19: vf_soil_sed | G19: Solid in Sediment | H19: 2400 | K19: Sediment resuspension | L19: 2e-07 | M19: Sed_Resusp
G20: Vegetation | H20: 900 | K20: Soil-water runoff rate | L20: 5e-05 | M20: Rate_Soil_Water
C21: ` | K21: Soil-solids runoff rate | L21: 1e-08 | M21: Rate_Soil_Solid
C22: Air | D22: 100000000000 | E22: Area_air | G22: Organic Carbon Content (g/g) | K22: Leaf-air boundary layer MTC | L22: 9 | M22: MTC_boundary_LeafAir
C23: Water | D23: 10000000000 | E23: Area_water | G23: Suspended particles | H23: 0.2 | I23: OC_susp
C24: Soil | D24: 90000000000 | E24: Area_soil | G24: Soil Solids | H24: 0.02 | I24: OC_soil_solid | K24: Scavenging Ratio (unitless) | L24: 200000
C25: Sediment | D25: 10000000000 | E25: Area_sed | G25: Sediment Solids | H25: 0.04 | I25: OC_sed_solid
K26: Fraction of rain intercepted by vegetation | L26: 0.1
C27: Area fraction of vegetation (m2/m2) | D27: 0.8 | E27: Area_frac_veg | G27: Lipid Content (g/g)
G28: Fish Lipid | H28: 0.05 | I28: L_fish
C29: Depth (m) | G29: Vegetation lipid | H29: 0.01 | I29: L_veg
C30: Air | D30: 1000
C31: Water | D31: 20 | G31: Vegetation
C32: Soil | D32: 0.2 | G32: Biomass (kg/m2) | H32: 1
C33: Sediment | D33: 0.05 | G33: Leaf Area Index (m2/m2) | H33: 3
C35: Wind Velocity (km/h) | D35: 14.4 | E35: Wind_velocity
C36: Water Velocity (km/h) | D36: 3.6 | E36: Water_velocity
C38: Volumes (m3) calculated | G38: Bulk Densities (kg/m3) calculated
C39: Air (Bulk) | D39: =D30*D22 -> 100000000000000 | E39: V_air | G39: Air | H39: =((1-vf_Q)*H10+vf_Q*H11) -> 1.18500004 | I39: dens_Air
C40: Air vapour | D40: =D39*(1-vf_Q) -> 99999999998000 | G40: Water | H40: =(vf_sus_water*H13+vf_Fish_Water*H14+(1-vf_sus_water-vf_Fish_Water)*H12) -> 1000.0025 | I40: dens_Water
C41: Aerosol | D41: =D39*vf_Q -> 2000 | G41: Soil | H41: =(vf_air_soil*H15+vf_water_soil*H16+vf_solids_soil*H17) -> 1500.237 | I41: dens_Soil
C42: Water (Bulk) | D42: =D23*D31 -> 200000000000 | E42: V_water | G42: Sediment | H42: =(vf_water_sed*H18+vf_soil_sed*H19) -> 1280 | I42: dens_Sed
C43: Liquid water | D43: =D42*(1-vf_sus_water-vf_Fish_Water) -> 199998800000
C44: Suspended particles | D44: =D42*vf_sus_water -> 1000000
C45: Biota | D45: =D42*vf_Fish_Water -> 200000
C46: Soil (Bulk) | D46: =D32*D24 -> 18000000000 | E46: V_soil
C47: Vapour | D47: =D46*vf_air_soil -> 3600000000
C48: Water | D48: =D46*vf_water_soil -> 5400000000
C49: Solid | D49: =D46*vf_solids_soil -> 9000000000
C50: Sediment (Bulk) | D50: =D33*D25 -> 500000000 | E50: V_sed
C51: Water | D51: =D50*vf_water_sed -> 400000000
C52: Solids | D52: =D50*vf_soil_sed -> 100000000
C53: Vegetation | D53: =IF(D27=0,0,(Area_frac_veg*Area_soil*H32/H20)) -> 80000000 | E53: V_veg

Sheet Emissions
C2: Emission Rate
C3: Select whether emission is to air or water:
C5: Into Air | D5: 1000 | E5: kg/h
C6: Into Water | D6: 0 | E6: kg/h

Sheet Results
C2: Chemical: | D2: ='Chemical Properties'!D9 -> Specimen Type 3 | G2: Name of Environment | H2: =EnvName -> EQC- standard environment
C4: Summary | M4: Advective residence times (h)
C5: =IF(EmissRate_Water=0,"Long-Range Transport in Air (km)","Long-Range Transport in River Water (km)") -> Long-Range Transport in Air (km) | G5: Overall Persistence: | H5: =ChemAmtM/(OutLossTotalM+0.0000001) -> 101.0486627 | I5: Hours | M5: Air | N5: =IF(Wind_velocity=0,"Negligible",Area_air^0.5/Wind_velocity) -> 21960.26153
C6: Overall | D6: =IF(EmissRate_Water=0,IF(ChemAmtM<0.00000000001,100000000000,Wind_velocity*AmtMolBulk_Air*Overall_Persistence/ChemAmtM),IF(ChemAmtM=0,0,Water_Velocity*AmtMolBulk_Water*Overall_Persistence/ChemAmtM)) -> 1134.109162 | H6: =Overall_Persistence/24 -> 4.210360948 | I6: Days | M6: Water | N6: =IF(Water_Velocity=0,"Negligible",Area_water^0.5/Water_Velocity) -> 27777.77778
C7: =IF(EmissRate_Water=0,"Over Water","") -> Over Water | D7: =IF(EmissRate_Water=0,IF(I59<0.00000000001,100000000000,Wind_velocity/(Results!F56+(D_AirWater/(VZ_Air*(Area_water/Area_air)))*Results!D13)),"") -> 1352.840418
C8: =IF(EmissRate_Water=0,"Over land","") -> Over land | D8: =IF(EmissRate_Water=0,IF(I40<0.00000000001,100000000000,Wind_velocity/(Results!F56+(D_AirSoil/(VZ_Air*(Area_soil/Area_air)))*Results!D14)),"") -> 1140.289911 | G8: Average # of Hops | H8: =IF(EmissRate_Air=0,"-",(TransRateM_WaterAir+TransRateM_SoilAir+TransRateM_VegAir)/(EmissRate_Air*1000/MolMass)) -> 0.5322004434 | M8: Vegeatation Cuticle MTC | N8: =K99 -> 0.005803621711
G10: Emission
C11: =IF(EmissRate_Water=0,"Stickiness wrt Air","Stickiness wrt Water") -> Stickiness wrt Air | G11: Total Chemical Input | H11: =SUM(Emissions!D5:D6) -> 1000 | I11: kg/h | J11: =H11*1000/MolMass -> 5555.555556 | K11: mol/h
C12: Air | D12: =IF(EmissRate_Water=0,"-",IF(TransRateM_WaterAir>0,(TransRateM_WaterAir-TransRateM_AirWater)/TransRateM_WaterAir,100000000000)) -> -
C13: Water | D13: =IF(EmissRate_Water=0,IF(TransRateM_AirWater<0.00000000001,100000000000,(TransRateM_AirWater-TransRateM_WaterAir)/TransRateM_AirWater),"-") -> -1.041149754 | G13: Total of VZ Products | H13: =SUM(VZ_Air:E24) -> 6.467685745e+10 | I13: mol/Pa
C14: Soil | D14: =IF(EmissRate_Water=0,IF(TransRateM_AirSoil<0.00000000001,100000000000,(TransRateM_AirSoil-TransRateM_SoilAir)/TransRateM_AirSoil),"-") -> 0.9688350414 | G14: Total amount of chemical in system | H14: =SUM(I31,I35,I40,I45,I49) -> 49534.85894 | I14: kg | J14: =H14/MolMass*1000 -> 275193.6608 | K14: mol
C15: Vegetation | D15: =IF(EmissRate_Water=0,IF(TransRateM_AirVeg<0.00000000001,100000000000,(TransRateM_AirVeg-TransRateM_VegAir)/TransRateM_AirVeg),"-") -> 0.005307629277
C16: Sediment | D16: =IF(EmissRate_Water=0,"-",IF(TransRateM_WaterSed<0.00000000001,100000000000,(Results!I79-Results!I82)/Results!I79)) -> -
C18: =IF(TYPE="Two","Aquivalence","Fugacity") -> Fugacity
D19: =IF(TYPE="Two","Aquivalence (m3/h)","Fugacity (Pa)") -> Fugacity (Pa) | E19: VZ (mol/Pa) | G19: D Total and J values (for fugacity calculation)
C20: Air | D20: =IF(D_Total_Water=0,(D_Total_Soil*EmissRate_Air*1000/MolMass)/((D_Total_Air*D_Total_Soil)-(D_AirSoil*D_SoilAir)),(K20+f_Water*K21)/K22) -> 5.245405411e-06 | E20: =Z_air*V_air -> 4.089038144e+10 | G20: D_Total_Air | H20: =G55+SUM(D_AirWater:D_AirVeg) -> 1074857861 | J20: jTempFug(1), Pa | K20: =EmissRate_Air*1000/MolMass/D_Total_Air -> 5.168642066e-06
C21: Water | D21: =IF(D_Total_Water=0,0,(EmissRate_Water*1000/MolMass+Results!K20*K23/(K22-K25))/(D_Total_Water-K21*K23/(K22-K25)-K24)) -> 1.074093297e-05 | E21: =Z_water*V_water -> 4910823197 | G21: D_Total_Water | H21: =G59+SUM(D_WaterAir:D_WaterSed) -> 7707836.319 | J21: jTempFug(2) | K21: =D_WaterAir/D_Total_Air -> 0.007132985844
C22: Soil | D22: =IF(D_Total_Water="0",(f_Air*D_AirSoil)/D_Total_Soil,(f_Air*D_AirSoil)/D_Total_Soil) -> 2.113015832e-07 | E22: =Z_soil*V_soil -> 1.853462706e+10 | G22: D_Total_Soil | H22: =G64+SUM(D_SoilAir:D_SoilWater) -> 24225831.09 | J22: jTempFug(3) | K22: =1-D_SoilAir*D_AirSoil/(D_Total_Air*D_Total_Soil) -> 0.9999717045
C23: Sediment | D23: =IF(D_Total_Water=0,0,(f_Water*D_WaterSed)/D_Total_Sed) -> 1.521378525e-05 | E23: =Z_sed*V_sed -> 226532695.1 | G23: D_Total_Sed | H23: =G66+D_SedWater -> 28868.60856 | J23: jTempFug(4) mol Pa h | K23: =D_AirWater+D_SoilWater*D_AirSoil/D_Total_Soil -> 7696011.496
C24: Vegetation | D24: =IF(Area_frac_veg>0,f_Air*D_AirVeg/D_Total_Veg,0) -> 5.217732329e-06 | E24: =Z_Veg*V_veg -> 114493058.9 | G24: D_Total_Veg | H24: =G68+D_VegAir -> 553783834.8 | J24: jTempFug(5) | K24: =D_WaterSed*D_SedWater/D_Total_Sed -> 40890.37595
J25: jTempFug(6) | K25: =IF(Area_frac_veg=0,0,D_AirVeg*D_VegAir/(D_Total_Air*D_Total_Veg)) -> 0.509777614
C26: Fugacity Ratio | D26: =IF(Pressure="-","N/A",IF(MeltPt>DataTemp,EXP(6.79*(1-(MeltPt+273.15)/(DataTemp+273.15))),1)) -> N/A
C28: Phase Properties
D29: Z Value | E29: Concentration | H29: Quantity
C30: Air | D30: mol/m³*Pa | E30: mol/m³ | F30: g/m³ | G30: µg/g | H30: mol | I30: kg | J30: %
C31: Bulk | D31: =(vf_Q*Z_Q+(1-vf_Q)*Z_AirVapour) -> 0.0004089038144 | E31: =Z_air*f_Air -> 2.144866281e-09 | F31: =E31*MolMass -> 3.860759305e-07 | G31: =F31*1000/dens_Air -> 0.000325802462 | H31: =E31*V_air -> 214486.6281 | I31: =AmtMolBulk_Air*MolMass/1000 -> 38607.59305 | J31: =AmtMolBulk_Air/ChemAmtM*100 -> 77.94025031
C32: Air Vapour | D32: =IF(TYPE="Two",Results!D36*Part1_2,1/'Chemical Properties'!I15/'Chemical Properties'!I13) -> 0.0004089037817 | E32: =Z_AirVapour*f_Air -> 2.144866109e-09 | F32: =E32*MolMass -> 3.860758996e-07 | G32: =F32*1000/'Environmental Properties'!H10 -> 0.0003258024469 | H32: =E32*'Environmental Properties'!D40 -> 214486.6109 | I32: =H32*MolMass/1000 -> 38607.58996 | J32: =H32/ChemAmtM*100 -> 77.94024407
C33: Aerosol | D33: =_xlfn.IFS(TYPE="One",(Z_AirVapour*6000000)/'Chemical Properties'!I11,TYPE="Two",Results!D36*KQW,TYPE="Three",Z_AirVapour*KQW) -> 1.635615127 | E33: =Z_Q*f_Air -> 8.579464436e-06 | F33: =E33*MolMass -> 0.001544303598 | G33: =F33*1000/'Environmental Properties'!H11 -> 0.0007721517992 | H33: =E33*'Environmental Properties'!D41 -> 0.01715892887 | I33: =H33*MolMass/1000 -> 0.003088607197 | J33: =H33/ChemAmtM*100 -> 6.235219526e-06
C34: Water
C35: Bulk | D35: =((1-vf_sus_water-vf_Fish_Water)*Zww+vf_sus_water*Z_SuspPart+vf_Fish_Water*Z_Fish) -> 0.02455411598 | E35: =Z_water*f_Water -> 2.637341139e-07 | F35: =E35*MolMass -> 4.747214051e-05 | G35: =F35*1000/dens_Water -> 4.747202183e-05 | H35: =E35*V_water -> 52746.82279 | I35: =AmtMolBulk_Water*MolMass/1000 -> 9494.428102 | J35: =AmtMolBulk_Water/ChemAmtM*100 -> 19.16716491
C36: Water | D36: =_xlfn.IFS(TYPE="One",Z_AirVapour/KawE,TYPE="Two",1,TYPE="Three",Z_AirVapour*'Chemical Properties'!D39) -> 0.0245342269 | E36: =Zww*f_Water -> 2.635204867e-07 | F36: =E36*MolMass -> 4.74336876e-05 | G36: =F36*1000/'Environmental Properties'!H12 -> 4.74336876e-05 | H36: =E36*'Environmental Properties'!D43 -> 52703.78111 | I36: =H36*MolMass/1000 -> 9486.6806 | J36: =H36/ChemAmtM*100 -> 19.15152441
C37: Susp. Particles | D37: =_xlfn.IFS(TYPE="One",(Zww*'Environmental Properties'!H13*'Environmental Properties'!H23*KOC)/1000,TYPE="Two",Zww*Part5_2,TYPE="Three",Z_AirVapour*'Chemical Properties'!D41) -> 3.271230254 | E37: =Z_SuspPart*f_Water -> 3.513606489e-05 | F37: =E37*MolMass -> 0.00632449168 | G37: =F37*1000/'Environmental Properties'!H13 -> 0.004216327787 | H37: =E37*'Environmental Properties'!D44 -> 35.13606489 | I37: =H37*MolMass/1000 -> 6.32449168 | J37: =H37/ChemAmtM*100 -> 0.01276775954
C38: Fish | D38: =_xlfn.SWITCH(TYPE,"One",Zww*KFW,"Two",Zww*Part6_2,"Three",Z_AirVapour*Part6_1) -> 3.680134035 | E38: =Z_Fish*f_Water -> 3.9528073e-05 | F38: =E38*MolMass -> 0.00711505314 | G38: =F38*1000/'Environmental Properties'!H14 -> 0.00711505314 | H38: =E38*'Environmental Properties'!D45 -> 7.9056146 | I38: =H38*MolMass/1000 -> 1.423010628 | J38: =H38/ChemAmtM*100 -> 0.002872745897
C39: Soil
C40: Bulk | D40: =((1-vf_water_soil-vf_solids_soil)*Z_SoilAir+vf_water_soil*Z_SoilWater+vf_solids_soil*Z_SoilSolids) -> 1.029701503 | E40: =Z_soil*f_Soil -> 2.175775578e-07 | F40: =E40*MolMass -> 3.91639604e-05 | G40: =F40*1000/dens_Soil -> 2.610518232e-05 | H40: =E40*V_soil -> 3916.39604 | I40: =H40*MolMass/1000 -> 704.9512873 | J40: =H40/ChemAmtM*100 -> 1.423141808
C41: Air | D41: =Z_AirVapour -> 0.0004089037817 | E41: =Z_SoilAir*f_Soil -> 8.640201644e-11 | F41: =E41*MolMass -> 1.555236296e-08 | G41: =F41*1000/'Environmental Properties'!H15 -> 1.312435693e-05 | H41: =E41*'Environmental Properties'!D47 -> 0.3110472592 | I41: =H41*MolMass/1000 -> 0.05598850665 | J41: =H41/ChemAmtM*100 -> 0.0001130284972
C42: Water | D42: =Zww -> 0.0245342269 | E42: =Z_SoilWater*f_Soil -> 5.184120986e-09 | F42: =E42*MolMass -> 9.331417776e-07 | G42: =F42*1000/'Environmental Properties'!H16 -> 9.331417776e-07 | H42: =E42*'Environmental Properties'!D48 -> 27.99425333 | I42: =H42*MolMass/1000 -> 5.038965599 | J42: =H42/ChemAmtM*100 -> 0.01017256475
C43: Solids | D43: =_xlfn.IFS(TYPE="One",(Zww*'Environmental Properties'!H17*'Environmental Properties'!H24*KOC)/1000,TYPE="Two",Zww*Part3_2,TYPE="Three",Z_AirVapour*'Chemical Properties'!D40) -> 2.044518909 | E43: =Z_SoilSolids*f_Soil -> 4.320100822e-07 | F43: =E43*MolMass -> 7.77618148e-05 | G43: =F43*1000/'Environmental Properties'!H17 -> 3.240075617e-05 | H43: =E43*'Environmental Properties'!D49 -> 3888.09074 | I43: =H43*MolMass/1000 -> 699.8563332 | J43: =H43/ChemAmtM*100 -> 1.412856215
C44: Sediment
C45: Bulk | D45: =vf_water_sed*Z_SedWater+vf_soil_sed*Z_SedSolids -> 0.4530653901 | E45: =Z_sed*f_Sed -> 6.89283955e-06 | F45: =E45*MolMass -> 0.001240711119 | G45: =F45*1000/dens_Sed -> 0.0009693055617 | H45: =E45*V_sed -> 3446.419775 | I45: =AmtMolBulk_Sed*MolMass/1000 -> 620.3555595 | J45: =AmtMolBulk_Sed/ChemAmtM*100 -> 1.252361615
C46: Water | D46: =Zww -> 0.0245342269 | E46: =Z_SedWater*f_Sed -> 3.732584594e-07 | F46: =E46*MolMass -> 6.718652269e-05 | G46: =F46*1000/'Environmental Properties'!H18 -> 6.718652269e-05 | H46: =E46*'Environmental Properties'!D51 -> 149.3033838 | I46: =H46*MolMass/1000 -> 26.87460908 | J46: =H46/ChemAmtM*100 -> 0.05425393279
C47: Solids | D47: =_xlfn.IFS(TYPE="One",(Zww*'Environmental Properties'!H19*'Environmental Properties'!H25*KOC)/1000,TYPE="Two",Zww*Part4_2,TYPE="Three",Z_AirVapour*'Chemical Properties'!D42) -> 2.167190043 | E47: =Z_SedSolids*f_Sed -> 3.297116391e-05 | F47: =E47*MolMass -> 0.005934809504 | G47: =F47*1000/'Environmental Properties'!H19 -> 0.002472837293 | H47: =E47*'Environmental Properties'!D52 -> 3297.116391 | I47: =H47*MolMass/1000 -> 593.4809504 | J47: =H47/ChemAmtM*100 -> 1.198107682
C48: Vegetation
C49: Bulk | D49: =_xlfn.IFS(TYPE="One",L_veg*Zww*KowE,TYPE="Two",Zww*'Chemical Properties'!D44,TYPE="Three",Z_AirVapour*'Chemical Properties'!D44) -> 1.431163236 | E49: =Z_Veg*f_Veg -> 7.467426685e-06 | F49: =E49*MolMass -> 0.001344136803 | G49: =F49*1000/dens_Veg -> 0.001493485337 | H49: =E49*V_veg -> 597.3941348 | I49: =AmtMolBulk_Veg*MolMass/1000 -> 107.5309443 | J49: =AmtMolBulk_Veg/ChemAmtM*100 -> 0.2170813576
C51: Reaction
D52: Half-Life | F52: Rate Constant | G52: D Value | H52: Removal Rate | J52: % of Total
D53: hours | E53: days | F53: 1/h | G53: mol/Pa*h | H53: kg/h | I53: mol/h | J53: Losses
C54: Air
C55: Bulk | G55: =SUM(G56:G57) -> 515328229.2 | H55: =I55*MolMass/1000 -> 486.5589867 | I55: =f_Air*G55 -> 2703.105482 | J55: =I55/OutLossTotalM*100 -> 99.25562727
C56: Air Vapour | D56: =t_air -> 55 | E56: =D56/24 -> 2.291666667 | F56: =IF(TYPE="One",LN(2)/D56*EXP(Ea_air*1000/Gas_constant*(1/DataTempK-1/EnvTempK)),LN(2)/D56) -> 0.01260267601 | G56: =Z_AirVapour*'Environmental Properties'!D40*Results!F56 -> 515328188 | H56: =I56*MolMass/1000 -> 486.5589478 | I56: =G56*f_Air -> 2703.105266 | J56: =I56/OutLossTotalM*100 -> 99.25561932
C57: Aerosol | D57: =t_air -> 55 | E57: 2.291666667 | F57: =IF(TYPE="One",LN(2)/D57*EXP(Ea_air*1000/Gas_constant*(1/DataTempK-1/EnvTempK)),LN(2)/D57) -> 0.01260267601 | G57: =Z_Q*'Environmental Properties'!D41*Results!F57 -> 41.22625504 | H57: =I57*MolMass/1000 -> 3.892471583e-05 | I57: =G57*f_Air -> 0.0002162484213 | J57: =I57/OutLossTotalM*100 -> 7.940449546e-06
C58: Water
C59: Bulk | G59: =SUM(G60:G62) -> 0.03403923253 | H59: =I59*MolMass/1000 -> 6.58103607e-08 | I59: =G59*f_Water -> 3.65613115e-07 | J59: =I59/OutLossTotalM*100 -> 1.342498815e-08
C60: Water | D60: =t_water -> 100000000000 | E60: 4166666667 | F60: =IF(TYPE="One",LN(2)/D60*EXP(Ea_water*1000/Gas_constant*(1/DataTempK-1/EnvTempK)),LN(2)/D60) -> 6.931471806e-12 | G60: =Zww*'Environmental Properties'!D43*Results!F60 -> 0.03401145634 | H60: =I60*MolMass/1000 -> 6.57566591e-08 | I60: =G60*f_Water -> 3.653147728e-07 | J60: =I60/OutLossTotalM*100 -> 1.341403329e-08
C61: Susp. Particles | D61: =t_water -> 100000000000 | E61: 4166666667 | F61: =IF(TYPE="One",LN(2)/D61*EXP(Ea_water*1000/Gas_constant*(1/DataTempK-1/EnvTempK)),LN(2)/D61) -> 6.931471806e-12 | G61: =Z_SuspPart*'Environmental Properties'!D44*Results!F61 -> 2.267444027e-05 | H61: =I61*MolMass/1000 -> 4.383803576e-11 | I61: =G61*f_Water -> 2.435446431e-10 | J61: =I61/OutLossTotalM*100 -> 8.942742517e-12
C62: Fish | D62: =t_water -> 100000000000 | E62: 4166666667 | F62: =IF(TYPE="One",LN(2)/D62*EXP(Ea_water*1000/Gas_constant*(1/DataTempK-1/EnvTempK)),LN(2)/D62) -> 6.931471806e-12 | G62: =Z_Fish*'Environmental Properties'!D45*Results!F62 -> 5.101749061e-06 | H62: =I62*MolMass/1000 -> 9.863558047e-12 | I62: =G62*f_Water -> 5.479754471e-11 | J62: =I62/OutLossTotalM*100 -> 2.012117066e-12
C63: Soil
C64: Bulk | D64: =t_soil -> 550 | E64: 22.91666667 | F64: =IF(TYPE="One",LN(2)/D64*EXP(Ea_soil*1000/Gas_constant*(1/DataTempK-1/EnvTempK)),LN(2)/D64) -> 0.001260267601 | G64: =V_soil*Z_soil*Results!F64 -> 23358589.98 | H64: =I64*MolMass/1000 -> 0.8884272676 | I64: =G64*f_Soil -> 4.935707042 | J64: =I64/OutLossTotalM*100 -> 0.1812347693
C65: Sediment
C66: Bulk | D66: =t_sed -> 100000000000 | E66: 4166666667 | F66: =IF(TYPE="One",LN(2)/D66*EXP(Ea_sed*1000/Gas_constant*(1/DataTempK-1/EnvTempK)),LN(2)/D66) -> 6.931471806e-12 | G66: =Z_sed*V_sed*Results!F66 -> 0.001570204989 | H66: =I66*MolMass/1000 -> 4.29997707e-09 | I66: =G66*f_Sed -> 2.38887615e-08 | J66: =I66/OutLossTotalM*100 -> 8.77174059e-10
C67: Vegetation
C68: Bulk | D68: =t_veg -> 27 | E68: 1.125 | F68: =IF(TYPE="One",LN(2)/D68*EXP(Ea_veg*1000/Gas_constant*(1/DataTempK-1/EnvTempK)),LN(2)/D68) -> 0.0256721178 | G68: =Z_Veg*V_veg*Results!F68 -> 2939279.295 | H68: =I68*MolMass/1000 -> 2.760547068 | I68: =G68*f_Veg -> 15.3363726 | J68: =I68/OutLossTotalM*100 -> 0.563137951
C70: Total | H70: =SUM(H55,H59,H64,H66,H68) -> 490.2079612 | I70: =SUM(I68,I66,I64,I59,I55) -> 2723.377562 | J70: =SUM(J68,J66,J64,J59,J55) -> 100
C72: Intermedia Transport
D73: Half Times | F73: Equiv. Flows | G73: D Value | H73: Transport Rate
D74: hours | E74: days | F74: m³/h | G74: mol/Pa*h | H74: kg/h | I74: mol/h
C75: Air to water | D75: =_xlfn.IFS(F75=100000000000,0,F75=0,100000000000,F75>0,LN(2)*V_air/Results!F75) -> 3684.988578 | E75: =D75/24 -> 153.5411908 | F75: =IF(Z_air=0,100000000000,D_AirWater/Z_air) -> 1.88100225e+10 | G75: =D89+D91+D96 -> 7691489.948 | H75: =TransRateM_AirWater*MolMass/1000 -> 7.262096938 | I75: =D_AirWater*f_Air -> 40.34498299
C76: Air to soil | D76: =_xlfn.IFS(F76=100000000000,0,F76=0,100000000000,F76>0,LN(2)*V_air/Results!F76) -> 29043.18538 | E76: =D76/24 -> 1210.132724 | F76: =IF(Z_air=0,100000000000,D_AirSoil/Z_air) -> 2386608671 | G76: =H90+D100+D92 -> 975893.3889 | H76: =TransRateM_AirSoil*MolMass/1000 -> 0.9214121632 | I76: =D_AirSoil*f_Air -> 5.118956462
C77: Air to vegetation | D77: =_xlfn.IFS(F77=100000000000,0,F77=0,100000000000,F77>0,LN(2)*V_air/Results!F77) -> 51.45216012 | E77: =D77/24 -> 2.143840005 | F77: =IF(Z_air=0,100000000000,D_AirVeg/Z_air) -> 1.34716828e+12 | G77: =SUM(H104,H102,H98) -> 550862248.4 | H77: =TransRateM_AirVeg*MolMass/1000 -> 520.1092473 | I77: =D_AirVeg*f_Air -> 2889.495818
C78: Water to air | D78: =_xlfn.IFS(F78=100000000000,0,F78=0,100000000000,F78>0,LN(2)*V_water/Results!F78) -> 443.9738188 | E78: 18.49890912 | F78: =IF(Z_water=0,100000000000,D_WaterAir/Z_water) -> 312246871.9 | G78: =D89 -> 7666945.907 | H78: =TransRateM_WaterAir*MolMass/1000 -> 14.82302737 | I78: =D_WaterAir*f_Water -> 82.35015208
C79: Water to sediment | D79: =_xlfn.IFS(F79=G113,0,F79=0,"1e11",F79>0,LN(2)*V_water/Results!F79) -> 83245.09102 | E79: 3468.545459 | F79: =IF(Z_water=0,100000000000,D_WaterSed/Z_water) -> 1665316.65 | G79: =SUM(H92:H93) -> 40890.37817 | H79: =TransRateM_WaterSed*MolMass/1000 -> 0.079056146 | I79: =D_WaterSed*f_Water -> 0.4392008111
C80: Soil to air | D80: =_xlfn.IFS(F80=100000000000,0,F80=0,100000000000,F80>0,LN(2)*V_soil/Results!F80) -> 17016.25846 | E80: 709.010769 | F80: =IF(Z_soil=0,100000000000, D_SoilAir/Z_soil) -> 733219.308 | G80: =H90 -> 754997.0236 | H80: =TransRateM_SoilAir*MolMass/1000 -> 0.02871577195 | I80: =D_SoilAir*f_Soil -> 0.1595320664
C81: Soil to water | D81: =_xlfn.IFS(F81=100000000000,0,F81=0,100000000000,F81>0,LN(2)*V_soil/Results!F81) -> 114457.9167 | E81: 4769.079864 | F81: =IF(Z_soil=0,100000000000, D_SoilWater/Z_soil) -> 109006.4332 | G81: =SUM(D102:D103) -> 112244.0881 | H81: =TransRateM_SoilWater*MolMass/1000 -> 0.004269123632 | I81: =D_SoilWater*f_Soil -> 0.02371735351
C82: Sediment to water | D82: =_xlfn.IFS(F82=100000000000,0,F82=0,100000000000,F82>0,LN(2)*V_sed/Results!F82) -> 5439.143598 | E82: 226.6309833 | F82: =IF(Z_sed=0,100000000000,D_SedWater/Z_sed) -> 63718.41155 | G82: =SUM(H92,H94) -> 28868.60699 | H82: =TransRateM_SedWater*MolMass/1000 -> 0.0790561417 | I82: =D_SedWater*f_Sed -> 0.4392007872
C83: Vegetation to air | D83: =_xlfn.IFS(F83=100000000000,0,F83=0,100000000000,F83>0,LN(2)*V_veg/Results!F83) -> 0.1440706642 | E83: 0.00600294434 | F83: =IF(Z_Veg=0,100000000000,D_VegAir/Z_Veg) -> 384892891.1 | G83: =H98 -> 550844555.5 | H83: =TransRateM_VegAir*MolMass/1000 -> 517.3487002 | I83: =D_VegAir*f_Veg -> 2874.159446
C85: Process D values (mol/Pa*h)
C87: Air-water diffusion (air-side) | D87: =Area_water*MTC_airside_AirWater*Z_AirVapour -> 20445189.09 | F87: Soil-air diffusion (air-phase) | H87: =Area_soil*MTC_diff_SoilAir*Z_SoilAir -> 736026.8071
C88: Air-water diffusion (water-side) | D88: =Area_water*MTC_waterside_AirWater*Zww -> 12267113.45 | F88: Soil-air diffusion (water-phase) | H88: =Area_soil*MTC_diff_SoilWater*Z_SoilWater -> 22080.80421
C89: Air-water diffusion (total) | D89: =IF(OR(Z_AirVapour=0,D87=0,D88=0),0,1/(1/D87+1/D88)) -> 7666945.907 | F89: Soil-air diffusion (boundary layer) | H89: =Area_soil*MTC_boundary_SoilAir*Z_SoilAir -> 184006701.8
F90: Soil-air diffusion (total) | H90: =IF(OR(Z_SoilAir=0,H89=0,H88+H87=0),0,1/(1/H89+1/(H88+H87))) -> 754997.0236
C91: Rain dissolution to water | D91: =Area_water*Rain_rate*Zww -> 24534.2269
C92: Rain dissolution to soil | D92: =Area_soil*Rain_rate*Z_SoilWater -> 220808.0421 | F92: Water-sediment diffusion | H92: =Area_water*MTC_waterside_SedWater*Z_SedWater -> 24534.2269
F93: Water to sediment deposition | H93: =Area_water*Sed_Dep*Z_SuspPart -> 16356.15127
C94: Aerosol deposition to water (dry) | D94: =Area_water*vf_Q*Aer_Dry_Dep*Z_Q -> 3.271230254 | F94: Sediment to water resuspension | H94: =Area_sed*Sed_Resusp*Z_SedSolids -> 4334.380086
C95: Aerosol deposition to water (wet) | D95: =Area_water*vf_Q*Rain_rate*Z_Q*'Environmental Properties'!L24 -> 6.542460507
C96: Aerosol deposition to water (total) | D96: =SUM(D94:D95) -> 9.813690761 | F96: Cuticle diffusion | H96: =Area_frac_veg*Area_soil*'Environmental Properties'!H33*Results!K99*Z_Veg -> 1794080886 | J96: PcLow | K96: =IF(ISNUMBER(KowE),10^(0.704*LOG(KowE)-11.2),10^(0.704*LOG(Z_Fish/L_fish/Zww)-11.2)) -> 1.769674379e-09
F97: Leaf boundary layer diffusion | H97: =Area_frac_veg*Area_soil*'Environmental Properties'!H33*MTC_boundary_LeafAir*Z_AirVapour -> 794908951.6 | J97: PcHigh | K97: =IF(ISNUMBER(KowE),10^(-3.47-2.79*(LOG(MolMass)/LOG(10))+0.97*LOG(KowE)),10^(-3.47-2.79*(LOG(MolMass)/LOG(10))+0.97*LOG(Z_Fish/L_fish/Zww))) -> 4.079409734e-07
C98: Aerosol deposition to soil (dry) | D98: =Area_soil*vf_Q*Aer_Dry_Dep*Z_Q -> 29.44107228 | F98: Air-vegetation diffusion (total) | H98: =IF(OR(H97=0,H96=0),0,1/(1/H97+1/H96)) -> 550844555.5 | J98: Pc | K98: =10^((LOG(K96)/LOG(10)+LOG(K97)/LOG(10))/2) -> 2.686861903e-08
C99: Aerosol deposition to soil (wet) | D99: =Area_soil*vf_Q*Rain_rate*Z_Q*'Environmental Properties'!L24 -> 58.88214457 | J99: VegCuticleMTC | K99: =IF(KawE<>0,3600*Results!K98/KawE,100000000000) -> 0.005803621711
C100: Aerosol deposition to soil (total) | D100: =SUM(D98:D99) -> 88.32321685 | F100: Dry particle deposition to vegetation | H100: =Area_frac_veg*Area_soil*Aer_Dry_Dep*vf_Q*Z_Q -> 23.55285783
F101: Wet particle deposition to vegetation | H101: =Area_frac_veg*Area_soil*vf_Q*Rain_rate*'Environmental Properties'!L26*'Environmental Properties'!L24*Z_Q -> 4.710571565
C102: Soil to water runoff (water) | D102: =Area_soil*Rate_Soil_Water*Z_SoilWater -> 110404.0211 | F102: Aerosol-vegetation deposition (total) | H102: =SUM(H100:H101) -> 28.26342939
C103: Soil to water runoff (solids) | D103: =Area_soil*Rate_Soil_Solid*Z_SoilSolids -> 1840.067018
F104: Rain dissolution to vegetation | H104: ='Environmental Properties'!L26*Rain_rate*Area_frac_veg*Area_soil*Zww -> 17664.64337

Sheet Diagram
D2: Chemical Name: | F2: =Results!D2 -> Specimen Type 3
D4: Lake Name: | F4: =EnvName -> EQC- standard environment
A5: =IF(B21="-","Average Wind Speed","Average River Current") -> Average Wind Speed | I5: =C21 -> 1000
B6: =IF(B21="-",Wind_velocity,Water_Velocity) -> 14.4 | C6: km/h
A7: Long-range transport | B7: =Results!D6 -> 1134.109162 | C7: km
A8: Persistence | B8: =Results!H5 -> 101.0486627 | C8: h | G8: =Results!H77 -> 520.1092473 | K8: =Results!H55 -> 486.5589867
A9: Total Mass | B9: =Results!H14 -> 49534.85894 | C9: kg
A10: =IF(B21="-","Average # Hopes","") -> Average # Hopes | B10: =IF(B21="-",Results!H8,"") -> 0.5322004434 | I10: =Results!I31 -> 38607.59305 | J10: kg
G11: =Results!H83 -> 517.3487002 | I11: =Results!J31 -> 77.94025031 | J11: %
D12: =Results!H68 -> 2.760547068 | E12: =Results!I49 -> 107.5309443 | F12: kg | I12: =Results!F31*10^9 -> 386.0759305 | J12: ng/m³
E13: =Results!J49 -> 0.2170813576 | F13: % | I13: =f_Air*10^6 -> 5.245405411 | J13: µPa
E14: =Results!G49*10^3 -> 1.493485337 | F14: ng/g
E15: =f_Veg*10^6 -> 5.217732329 | F15: µPa
G16: =Results!H80 -> 0.02871577195
G19: =Results!H76 -> 0.9214121632 | I19: =Results!H75 -> 7.262096938 | K19: =Results!H78 -> 14.82302737
B20: Water | C20: Air
A21: Emission to: | B21: =IF(EmissRate_Water=0,"-",EmissRate_Water) -> - | C21: =IF(EmissRate_Air=0,"-",EmissRate_Air) -> 1000
E22: =Results!I40 -> 704.9512873 | F22: kg
E23: =Results!J40 -> 1.423141808 | F23: % | L23: =B21 -> -
D24: =Results!H64 -> 0.8884272676 | E24: =Results!G40*10^3 -> 0.02610518232 | F24: ng/g solids
E25: =f_Soil*10^6 -> 0.2113015832 | F25: µPa | G25: =Results!H81 -> 0.004269123632
I26: =Results!I35 -> 9494.428102 | J26: kg
I27: =Results!J35 -> 19.16716491 | J27: %
I28: =Results!G35*10^6 -> 47.47202183 | J28: ng/L | K28: =Results!H59 -> 6.58103607e-08
I29: =f_Water*10^6 -> 10.74093297 | J29: µPa
H33: =Results!H79 -> 0.079056146 | J33: =Results!H82 -> 0.0790561417
B36: -
I38: =Results!I45 -> 620.3555595 | J38: kg
I39: =Results!J45 -> 1.252361615 | J39: % | K39: =Results!H66 -> 4.29997707e-09
I40: =Results!G45*10^3 -> 0.9693055617 | J40: ng/g solids
I41: =f_Sed*10^6 -> 15.21378525 | J41: µPa

Sheet Chemical Database
AK1: Log Kow required for Type 1 chemicals. For Type 2 chemicals, relevant inputs are medium/water and for Type 3 chemicals relevant inputs are medium/air
AK2: Make sure to input proper partition ratios for Type 2 and Type 3 chemicals
E7: Melting point, vapour pressure, solubility in water, and Henry's law constants required for Type 1 chemicals only | M7: Enthalpy (Required for Type 1 chemicals only) | Q7: Half-Lives (If negligible, enter 1E+11) | AA7: Activation Energy (Required for Type 1 chemicals only) | AK7: Partition Ratios
A8: CAS | B8: Chemical Name | C8: Molar Mass | D8: Data Temp. | E8: Melting Point | G8: Vapor pressure | I8: Solubility in Water | K8: Henry's Law Constant | M8: Kow | O8: Kaw | Q8: In Air | S8: In Water | U8: In Soil | W8: In Sediment | Y8: In Vegetation | AA8: In Air | AC8: In Water | AE8: In Soil | AG8: In Sediment | AI8: In Vegetation | AK8: logKOW | AM8: Air-Water/Water-Air | AO8: Soil-Water/Soil-Air | AQ8: Susp. Particles-Water/Susp. Particles-Air | AS8: Sediment-Water/Sediment-Air | AU8: Fish-Water/Fish-Air | AW8: Aerosol-Water/Aerosol-Air | AY8: Vegetation-Water/Vegetation-Air | BA8: NOTES
C9: (g/mol) | D9: °C | E9: °C | F9: Ref. | G9: (Pa) | H9: Ref. | I9: (g/m³ or mg/L) | J9: Ref. | K9: (Pa·m³/mol) | L9: Ref. | M9: (kJ/mol) | N9: Ref. | O9: (kJ/mol) | P9: Ref. | Q9: (hours) | R9: Ref. | S9: (hours) | T9: Ref. | U9: (hours) | V9: Ref. | W9: (hours) | X9: Ref. | Y9: (hours) | Z9: Ref. | AA9: (kJ/mol) | AB9: Ref. | AC9: (kJ/mol) | AD9: Ref. | AE9: (kJ/mol) | AF9: Ref. | AG9: (kJ/mol) | AH9: Ref. | AI9: (kJ/mol) | AJ9: Ref. | AL9: Ref. | AM9: unitless (m³/m³) | AN9: Ref. | AO9: L/kg | AP9: Ref. | AQ9: L/kg | AR9: Ref. | AS9: L/kg | AT9: Ref. | AU9: L/kg | AV9: Ref. | AW9: unitless | AX9: Ref. | AY9: L/kg | AZ9: Ref.
B10: Specimen Type 1 | C10: 250 | D10: 25 | E10: 275 | G10: 0.02 | I10: 30 | K10: =IF(OR(B10="",G10="",B10="-",G10="-"),"-",G10*C10/I10) -> 0.1666666667 | M10: -20 | O10: 55 | Q10: 17 | S10: 55 | U10: 170 | W10: 170 | Y10: 8.5 | AA10: 10 | AC10: 30 | AE10: 30 | AG10: 30 | AI10: 10 | AK10: 2.5 | BA10: Example values for Type 1 chemicals such as benzene
B11: Specimen Type 2 | C11: 130 | D11: 22 | G11: - | K11: =IF(OR(B11="",G11="",B11="-",G11="-"),"-",G11*C11/I11) -> - | Q11: 100000000000 | S11: 170 | U11: 1700 | W11: 17000 | Y11: 100000000000 | AM11: 0 | AO11: 450 | AQ11: 0.7 | AS11: 30 | AU11: 800 | AW11: 200 | AY11: 250 | BA11: Example values for Type 2 chemicals such as alkylbenene sulfonates
B12: Specimen Type 3 | C12: 180 | D12: 21 | G12: - | K12: - | Q12: 55 | S12: 100000000000 | U12: 550 | W12: 100000000000 | Y12: 27 | AM12: 60 | AO12: 5000 | AQ12: 8000 | AS12: 5300 | AU12: 9000 | AW12: 4000 | AY12: 3500 | BA12: Example values for Type 3 chemicals such as mineral oil
B13: Benzene | C13: 78 | D13: 25 | E13: 5.35 | G13: 12700 | I13: 1780 | K13: 556.5168539 | M13: -20 | N13: EAS-E Suite | O13: 60 | P13: EAS-E Suite | Q13: 315.58 | S13: 331.1 | U13: 662.205 | W13: 2979.92 | AA13: 10 | AC13: 30 | AE13: 30 | AG13: 30 | AI13: 10 | AK13: 2.13
B14: Toluene | C14: 92.13 | D14: 25 | E14: -95 | G14: 3800 | I14: 515 | K14: 679.7941748 | M14: -20 | N14: EAS-E Suite | O14: 60 | P14: EAS-E Suite | Q14: 64.93 | S14: 238.865 | U14: 477.725 | W14: 2149.75 | AA14: 10 | AC14: 30 | AE14: 30 | AG14: 30 | AI14: 10 | AK14: 2.69
B15: Chlorobenzene | C15: 112.56 | D15: 25 | E15: -45.6 | G15: 1580 | I15: 484 | K15: 367.4479339 | M15: -15 | O15: 28.85 | Q15: 500.11 | S15: 602.2 | U15: 1204.4 | W15: 5419.8 | Y15: 85 | AA15: 10 | AC15: 30 | AE15: 30 | AG15: 30 | AI15: 10 | AK15: 2.8
B16: 1,4-Dichlorobenzene | C16: 147.01 | D16: 25 | E16: 53.1 | G16: 130 | I16: 83 | K16: 230.2566265 | M16: -20 | N16: EAS-E Suite | O16: 60 | P16: EAS-E Suite | Q16: 620.3 | S16: 1239 | U16: 2477.9 | W16: 12390 | AA16: 10 | AC16: 30 | AE16: 30 | AG16: 30 | AI16: 10 | AK16: 3.4
B17: Hexachlorobenzene | C17: 284.8 | D17: 25 | E17: 230 | G17: 0.0023 | I17: 0.005 | K17: 131.008 | M17: -16.87 | O17: 46.35 | Q17: 7351.7 | S17: 14017 | U17: 28033 | W17: 140170 | Y17: 5800 | AA17: 10 | AC17: 30 | AE17: 30 | AG17: 30 | AI17: 10 | AK17: 5.47
B18: N-hexane | C18: 86.17 | D18: 25 | E18: -95 | G18: 20200 | I18: 9.5 | K18: 183224.6316 | M18: -20 | N18: EAS-E Suite | O18: 60 | P18: EAS-E Suite | Q18: 74.05 | S18: 152.8 | U18: 305.595 | W18: 1375.2 | AA18: 10 | AC18: 30 | AE18: 30 | AG18: 30 | AI18: 10 | AK18: 4.11
B19: Tricholoroethylene | C19: 131.39 | D19: 25 | E19: -73 | G19: 9900 | I19: 1100 | K19: 1182.51 | M19: -20 | N19: EAS-E Suite | O19: 60 | P19: EAS-E Suite | Q19: 191.85 | S19: 1028.6 | U19: 2057.2 | W19: 9257.2 | AA19: 10 | AC19: 30 | AE19: 30 | AG19: 30 | AI19: 10 | AK19: 2.53
B20: 1-Pentanol | C20: 88.149 | D20: 25 | E20: -78.2 | G20: 300 | I20: 22000 | K20: 1.202031818 | M20: -20 | N20: EAS-E Suite | O20: 60 | P20: EAS-E Suite | Q20: 34.69 | S20: 126.5 | U20: 253 | W20: 1138.5 | AA20: 10 | AC20: 30 | AE20: 30 | AG20: 30 | AI20: 10 | AK20: 1.5
B21: Aniline | C21: 93.12 | D21: 25 | E21: -6.3 | G21: 65.19 | I21: 36070 | K21: 0.1682975548 | M21: -20 | N21: EAS-E Suite | O21: 60 | P21: EAS-E Suite | Q21: 3.42 | S21: 573.71 | U21: 1147.4 | W21: 5163.4 | AA21: 10 | AC21: 30 | AE21: 30 | AG21: 30 | AI21: 10 | AK21: 0.9
B22: Benzo[a]pyrene | C22: 252.32 | D22: 25 | E22: 175 | G22: 7e-07 | I22: 0.0038 | K22: 0.04648 | M22: -25.4 | O22: 36.89 | Q22: 7.7 | S22: 7058.9 | U22: 14118.3 | W22: 63532 | Y22: 85 | AA22: 10 | AC22: 30 | AE22: 30 | AG22: 30 | AI22: 10 | AK22: 5.94
B23: Naphthalene | C23: 128.19 | D23: 25 | E23: 80.5 | G23: 10.4 | I23: 31 | K23: 43.00567742 | M23: -20 | N23: EAS-E Suite | O23: 60 | P23: EAS-E Suite | Q23: 8.63 | S23: 414.99 | U23: 829.99 | W23: 1267.7 | AA23: 10 | AC23: 30 | AE23: 30 | AG23: 30 | AI23: 10 | AK23: 3.37
B24: Phenanthrene | C24: 178.2 | D24: 25 | E24: 101 | G24: 0.02 | I24: 1.1 | K24: 3.24 | M24: -20 | N24: EAS-E Suite | O24: 60 | P24: EAS-E Suite | Q24: 7.32 | S24: 618.245 | U24: 1236.48 | W24: 3413.15 | AA24: 10 | AC24: 30 | AE24: 30 | AG24: 30 | AI24: 10 | AK24: 4.57
B25: Pyrene | C25: 202.3 | D25: 25 | E25: 156 | G25: 0.0006 | I25: 0.132 | K25: 0.9195454545 | M25: -20 | N25: EAS-E Suite | O25: 60 | P25: EAS-E Suite | Q25: 3.97 | S25: 4988.75 | U25: 9977.4 | W25: 64615 | AA25: 10 | AC25: 30 | AE25: 30 | AG25: 30 | AI25: 10 | AK25: 5.18
B26: PCB-15 | C26: 223.1 | D26: 25 | E26: 149 | G26: 0.0048 | I26: 0.06 | K26: 17.848 | M26: -20 | N26: EAS-E Suite | O26: 60 | P26: EAS-E Suite | Q26: 192.54 | S26: 1758.4 | U26: 3516.9 | W26: 15826 | AA26: 10 | AC26: 30 | AE26: 30 | AG26: 30 | AI26: 10 | AK26: 5.3
B27: PCB-52 | C27: 292 | D27: 25 | E27: 87 | G27: 0.0049 | I27: 0.03 | K27: 47.69333333 | M27: -20 | N27: EAS-E Suite | O27: 60 | P27: EAS-E Suite | Q27: 527.4 | S27: 5914.2 | U27: 11828 | W27: 53227 | AA27: 10 | AC27: 30 | AE27: 30 | AG27: 30 | AI27: 10 | AK27: 6.1
B28: PCB-209 | C28: 498.7 | D28: 25 | E28: 305.9 | G28: 5.02e-08 | I28: 1e-05 | K28: 2.503474 | M28: -20 | N28: EAS-E Suite | O28: 60 | P28: EAS-E Suite | Q28: 21193 | S28: 81709 | U28: 163420 | W28: 735380 | AA28: 10 | AC28: 30 | AE28: 30 | AG28: 30 | AI28: 10 | AK28: 8.26
B29: Dibenzo-p-dioxin | C29: 184 | D29: 25 | E29: 123 | G29: 0.055 | I29: 0.865 | K29: 11.69942197 | M29: -20 | N29: EAS-E Suite | O29: 60 | P29: EAS-E Suite | Q29: 32.09 | S29: 390.33 | U29: 780.67 | W29: 3513 | AA29: 10 | AC29: 30 | AE29: 30 | AG29: 30 | AI29: 10 | AK29: 4.3
B30: 4-chlorophenol | C30: 128.56 | D30: 25 | E30: 43 | G30: 20 | I30: 27000 | K30: 0.09522962963 | M30: -20 | N30: EAS-E Suite | O30: 60 | P30: EAS-E Suite | Q30: 39.01 | S30: 597.61 | U30: 1195.2 | W30: 5378.5 | AA30: 10 | AC30: 30 | AE30: 30 | AG30: 30 | AI30: 10 | AK30: 2.4
B31: Pentachlorophenol | C31: 266.34 | D31: 25 | E31: 190 | G31: 0.00415 | I31: 14 | K31: 0.07895078571 | M31: -20 | N31: EAS-E Suite | O31: 60 | P31: EAS-E Suite | Q31: 597.91 | S31: 6759.9 | U31: 13520 | W31: 67599 | AA31: 10 | AC31: 30 | AE31: 30 | AG31: 30 | AI31: 10 | AK31: 5.05
B32: DEHP | C32: 390.54 | D32: 25 | E32: -50 | G32: 1.33e-05 | I32: 0.285 | K32: 0.0182252 | M32: -20 | N32: EAS-E Suite | O32: 60 | P32: EAS-E Suite | Q32: 9.41 | S32: 115.11 | U32: 230.21 | W32: 1151.1 | AA32: 10 | AC32: 30 | AE32: 30 | AG32: 30 | AI32: 10 | AK32: 5.11
B33: p,p'-DDT | C33: 354.5 | D33: 25 | E33: 108.5 | G33: 2e-05 | I33: 0.0055 | K33: 1.289090909 | M33: -20 | N33: EAS-E Suite | O33: 60 | P33: EAS-E Suite | Q33: 112.1 | S33: 14472 | U33: 28945 | W33: 130250 | AA33: 10 | AC33: 30 | AE33: 30 | AG33: 30 | AI33: 10 | AK33: 6.19
B34: Lindane | C34: 290.85 | D34: 25 | E34: 112 | G34: 0.00374 | I34: 7.3 | K34: 0.1490108219 | M34: -20 | N34: EAS-E Suite | O34: 60 | P34: EAS-E Suite | Q34: 1044.7 | S34: 4392.9 | U34: 8785.8 | W34: 43929 | AA34: 10 | AC34: 30 | AE34: 30 | AG34: 30 | AI34: 10 | AK34: 3.7
B35: Atrazine | C35: 215.68 | D35: 25 | E35: 174 | G35: 4e-05 | I35: 30 | K35: 0.0002875733333 | M35: -20 | N35: EAS-E Suite | O35: 60 | P35: EAS-E Suite | Q35: 9.33 | S35: 2505.2 | U35: 5010.4 | W35: 25052 | AA35: 10 | AC35: 30 | AE35: 30 | AG35: 30 | AI35: 10 | AK35: 2.75
B36: LAS | C36: 348 | D36: 25 | G36: - | K36: - | Q36: 24 | S36: 24 | U36: 480 | W36: 96 | AM36: 0 | AO36: 20 | AQ36: 570 | AS36: 570 | AU36: 250 | AW36: 100 | AY36: 250
B37: 2,3,7,8-TCDD | C37: 322 | D37: 25 | E37: 305 | G37: 2e-07 | I37: 1.93e-05 | K37: 3.336787565 | M37: -18.22 | O37: 74.44 | Q37: 170 | S37: 550 | U37: 17000 | W37: 55000 | Y37: 85 | AA37: 10 | AC37: 30 | AE37: 30 | AG37: 30 | AI37: 10 | AK37: 6.83
B38: X-Hypothetical chemical | C38: 215.9 | D38: 25 | E38: 140 | G38: 0.72 | I38: 1.27 | K38: 122.4 | M38: -20 | O38: 55 | Q38: 24 | S38: 2184 | U38: 2184 | W38: 4380 | Y38: 12 | AA38: 10 | AC38: 30 | AE38: 30 | AG38: 30 | AI38: 10 | AK38: 4.5 | BA38: Hypothetical chemical

Sheet Environmental Database
C7: Volume Fractions | K7: Area (m2) | O7: Area fraction (m2/m2) | P7: Depth (m) | T7: Densities for subcompartments (kg/m³) | AE7: Velocities (km/h) | AG7: Organic Carbon (g/g) | AJ7: Lipid (g/g) | AL7: Vegetation | AN7: Transport Velocities (m/h) | BA7: Scavenging Ratio
A8: Name | B8: Environment Temperature (°C) | C8: Aerosol in Air | D8: Susp. Particles in Water | E8: Fish in Water | F8: Air in Soil | G8: Water in Soil | H8: Solids ins Soil | I8: Water in Sediment | J8: Solids in Sediment | K8: Air | L8: Water | M8: Soil | N8: Sediment | O8: Vegetation | P8: Air | Q8: Water | R8: Soil | S8: Sediment | T8: Air in Air | U8: Aerosol in Air | V8: Water in Water | W8: Susp. Particles in Water | X8: Fish in Water | Y8: Air in Soil | Z8: Water in Soil | AA8: Solid in Soil | AB8: Water in Sediment | AC8: Solid in Sediment | AD8: Vegetation in soil | AE8: Wind | AF8: Water | AG8: Susp. Particles | AH8: Soil | AI8: Sediment | AJ8: Fish | AK8: Vegetation | AL8: Biomass (kg/m2) | AM8: Leaf Area Index (m2/m2) | AN8: Air side air-water MTC | AO8: Water side air-water MTC | AP8: Rain rate | AQ8: Aerosol dry deposition | AR8: Soil-air phase diffusion MTC | AS8: Soil-water phase diffusion MTC | AT8: Soil-air boundary layer MTC | AU8: Sediment-water diffusion MTC | AV8: Sediment deposition | AW8: Sediment resuspension | AX8: Soil-water runoff rate | AY8: Soil-solids runoff rate | AZ8: Leaf-air boundary layer MTC | BA8: (unitless) | BB8: Fraction of rain intercepted by vegetation | BC8: NOTES
A10: EQC- standard environment | B10: 20 | C10: 2e-11 | D10: 5e-06 | E10: 1e-06 | F10: 0.2 | G10: 0.3 | H10: 0.5 | I10: 0.8 | J10: 0.2 | K10: 100000000000 | L10: 10000000000 | M10: 90000000000 | N10: 10000000000 | O10: 0.8 | P10: 1000 | Q10: 20 | R10: 0.2 | S10: 0.05 | T10: 1.185 | U10: 2000 | V10: 1000 | W10: 1500 | X10: 1000 | Y10: 1.185 | Z10: 1000 | AA10: 2400 | AB10: 1000 | AC10: 2400 | AD10: 900 | AE10: 14.4 | AF10: 3.6 | AG10: 0.2 | AH10: 0.02 | AI10: 0.04 | AJ10: 0.05 | AK10: 0.01 | AL10: 1 | AM10: 3 | AN10: 5 | AO10: 0.05 | AP10: 0.0001 | AQ10: 10 | AR10: 0.02 | AS10: 1e-05 | AT10: 5 | AU10: 0.0001 | AV10: 5e-07 | AW10: 2e-07 | AX10: 5e-05 | AY10: 1e-08 | AZ10: 9 | BA10: 200000 | BB10: 0.1
A11: EQC- modified environment (no water) | B11: 20 | C11: 2e-11 | D11: 5e-06 | E11: 1e-06 | F11: 0.2 | G11: 0.3 | H11: 0.5 | I11: 0.8 | J11: 0.2 | K11: 100000000000 | L11: 0 | M11: 100000000000 | N11: 0 | O11: 0.8 | P11: 1000 | Q11: 20 | R11: 0.2 | S11: 0.05 | T11: 1.185 | U11: 2000 | V11: 1000 | W11: 1500 | X11: 1000 | Y11: 1.185 | Z11: 1000 | AA11: 2400 | AB11: 1000 | AC11: 2400 | AD11: 900 | AE11: 14.4 | AF11: 3.6 | AG11: 0.2 | AH11: 0.02 | AI11: 0.04 | AJ11: 0.05 | AK11: 0.01 | AL11: 1 | AM11: 3 | AN11: 5 | AO11: 0.05 | AP11: 0.0001 | AQ11: 10 | AR11: 0.02 | AS11: 1e-05 | AT11: 5 | AU11: 0.0001 | AV11: 5e-07 | AW11: 2e-07 | AX11: 5e-05 | AY11: 1e-08 | AZ11: 9 | BA11: 200000 | BB11: 0.1
